bitfinex-derivatives/quotes_SOLF0:USTF0_20241206
["timestamp","ask_amount","ask_price","bid_price","bid_amount"]
[1733478732179,19.19950033,236.65,236.28,1.2673]
[1733478732483,8.58500604,236.64,236.28,1.2673]
[1733478732784,44.0,236.68,236.29,0.842]
[1733478732988,44.0,236.68,236.54,2.1117]
[1733478732989,2.1108,236.65,236.54,2.1117]
[1733478733278,44.0,236.68,236.33,5.83132639]
[1733478733479,44.0,236.68,236.34,1.05681293]
[1733478733682,1.275,236.67,236.35,1.05681293]
[1733478733880,1.275,236.67,236.36,1.05681293]
[1733478734084,1.275,236.67,236.33,1.3363]
[1733478734085,2.1111,236.62,236.37,1.05681293]
[1733478734283,1.275,236.67,236.38,2.32411293]
[1733478734479,1.275,236.67,236.39,1.05681293]
[1733478734681,8.58447892,236.66,236.4,1.05681293]
[1733478734883,1.275,236.67,236.41,1.05681293]
[1733478735087,1.275,236.67,236.42,1.05681293]
[1733478735290,1.3272,236.71,236.62,2.111]
[1733478735595,1.3272,236.71,236.44,1.05681293]
[1733478735894,1.3272,236.71,236.45,1.89881293]
[1733478736091,1.3272,236.71,236.46,1.05681293]
[1733478736388,1.3272,236.71,236.47,1.05681293]
[1733478736593,48.1951,237.02,236.48,45.03681293]
[1733478736594,2.5404,236.98,236.48,45.03681293]
[1733478736795,2.1094,236.81,236.7,2.1102]
[1733478736993,1.3067,236.97,236.5,2.31311293]
[1733478737190,1.3067,236.97,236.51,1.05681293]
[1733478737385,1.3067,236.97,236.51,5.23226341]
[1733478737591,1.3067,236.97,236.52,1.05681293]
[1733478737785,1.3067,236.97,236.53,1.05681293]
[1733478737986,2.1092,236.83,236.6,2.1111]
[1733478738191,1.3067,236.97,236.61,1.2627]
[1733478738387,1.3422,236.82,236.62,1.05615516]
[1733478738589,1.3422,236.82,236.63,1.05613704]
[1733478738790,1.3422,236.82,236.61,5.47910469]
[1733478739092,1.3422,236.82,236.62,1.05607882]
[1733478739290,1.3422,236.82,236.63,1.05607882]
[1733478739493,1.3422,236.82,236.61,1.2627]
[1733478739698,2.533,236.81,236.61,1.2627]
[1733478739897,2.533,236.81,236.5,4.32323998]
[1733478740092,2.533,236.81,236.51,1.2627]
[1733478740494,2.533,236.81,236.59,2.1112]
[1733478740693,2.533,236.81,236.51,1.2627]
[1733478741092,2.533,236.81,236.46,4.20711466]
[1733478741294,1.0,236.78,236.44,32.66833839]
[1733478741890,1.0,236.78,236.5,2.112]
[1733478742099,1.0,236.78,236.43,1.2591]
[1733478742291,8.54198407,236.77,236.34,48.20638613]
[1733478742496,8.54198407,236.76,236.35,1.2591]
[1733478742692,8.54198407,236.75,236.35,1.2591]
[1733478742893,2.1116,236.56,236.35,1.2591]
[1733478743202,1.0,236.78,236.35,1.2591]
[1733478743396,2.1118,236.53,236.35,1.2591]
[1733478743995,1.2966,236.55,236.35,1.2591]
[1733478744203,1.0,236.78,236.35,1.2591]
[1733478744396,28.23447323,236.77,236.55,2.1116]
[1733478744692,2.1109,236.64,236.55,2.1116]
[1733478744892,2.1109,236.64,236.56,2.1115]
[1733478745099,1.2747,236.77,236.36,4.2268]
[1733478745296,8.53951608,236.76,236.36,4.2268]
[1733478745493,1.2747,236.77,236.62,2.111]
[1733478745697,1.2747,236.77,236.53,4.27641808]
[1733478745895,1.2747,236.77,236.41,4.15556279]
[1733478745896,1.2747,236.77,236.37,4.2265]
[1733478746100,1.2747,236.77,236.36,1.0]
[1733478746803,2.111,236.63,236.36,1.0]
[1733478747097,1.2747,236.77,236.35,1.3741]
[1733478747295,12.68,236.75,236.35,1.3741]
[1733478747498,8.53687811,236.74,236.35,1.3741]
[1733478747801,8.53521405,236.73,236.35,1.3741]
[1733478747997,2.1109,236.64,236.35,1.3741]
[1733478748400,43.96,236.76,236.6,2.1111]
[1733478748802,43.96,236.76,236.39,4.32308375]
[1733478749103,2.1112,236.61,236.53,2.1118]
[1733478749299,12.68,236.75,236.35,1.3741]
[1733478749502,8.53328399,236.74,236.35,1.3741]
[1733478749703,2.1114,236.58,236.5,2.1121]
[1733478749900,13.68,236.75,236.35,1.3741]
[1733478750101,1.3352,236.57,236.35,1.3741]
[1733478750405,2.6735,236.56,236.35,1.3741]
[1733478750607,2.6735,236.56,236.21,0.8403]
[1733478750900,2.6735,236.56,236.28,1.2593]
[1733478751106,2.6735,236.56,236.28,5.51054365]
[1733478751299,2.6735,236.56,236.28,1.2593]
[1733478751701,2.6735,236.56,236.29,4.21980386]
[1733478751897,2.6735,236.56,236.37,2.1132]
[1733478752208,2.6735,236.56,236.29,4.21980386]
[1733478752500,2.6735,236.56,236.33,2.1136]
[1733478752501,2.113,236.41,236.33,2.1136]
[1733478752905,2.1131,236.39,236.31,2.1138]
[1733478753102,15.3535,236.56,236.31,2.1138]
[1733478753311,12.68,236.54,236.31,2.1138]
[1733478753604,12.68,236.54,236.21,1.35]
[1733478753810,1.0,236.55,236.21,1.35]
[1733478753999,1.0,236.55,236.41,2.1129]
[1733478754000,2.1123,236.49,236.41,2.1129]
[1733478754204,2.6735,236.56,236.34,4.2240334]
[1733478754502,2.6735,236.56,236.21,1.35]
[1733478754708,2.1121,236.5,236.31,2.1138]
[1733478755003,2.1121,236.5,236.32,1.35]
[1733478755403,2.6735,236.56,236.32,1.35]
[1733478755709,2.6735,236.56,236.32,5.4798709]
[1733478755902,2.6735,236.56,236.4,2.1129]
[1733478756110,2.112,236.52,236.4,2.1129]
[1733478756410,2.6735,236.56,236.32,1.35]
[1733478756704,2.6735,236.56,236.41,2.1129]
[1733478756906,2.1124,236.47,236.32,5.48156226]
[1733478757803,2.6735,236.56,236.32,5.48156226]
[1733478758200,2.6735,236.56,236.42,2.1128]
[1733478758402,2.1122,236.49,236.42,2.1128]
[1733478758808,2.6735,236.56,236.42,2.1128]
[1733478759004,2.1125,236.46,236.32,1.35]
[1733478759208,2.6735,236.56,236.32,5.55640298]
[1733478759409,2.6735,236.56,236.32,1.35]
[1733478760008,2.1125,236.47,236.32,5.55428858]
[1733478760210,2.1125,236.47,236.32,1.35]
[1733478760611,2.1124,236.47,236.4,2.1129]
[1733478761112,2.1127,236.44,236.39,2.1131]
[1733478761305,15.3535,236.56,236.22,5.80989385]
[1733478761501,21.26464605,236.55,236.23,1.3809]
[1733478761811,2.113,236.4,236.34,2.1135]
[1733478762007,13.68,236.55,236.23,1.3809]
[1733478762211,12.68,236.53,236.23,1.3809]
[1733478762514,12.68,236.51,236.23,1.3809]
[1733478762704,12.68,236.49,236.2,43.96]
[1733478762909,12.68,236.47,236.2,43.96]
[1733478763511,8.5822926,236.46,236.27,2.1141]
[1733478763714,12.68,236.47,236.27,2.1141]
[1733478764009,1.3569,236.45,236.2,43.96]
[1733478764207,1.3569,236.45,236.28,2.1141]
[1733478764806,1.3569,236.45,236.18,1.3395]
[1733478765007,1.3569,236.45,236.19,4.32500868]
[1733478765516,2.1136,236.34,236.27,2.1141]
[1733478767116,1.3569,236.45,236.3,2.1138]
[1733478767117,2.1133,236.37,236.3,2.1138]
[1733478767308,1.3569,236.45,236.18,1.3395]
[1733478767514,1.3569,236.45,236.18,5.6386991]
[1733478767709,1.3569,236.45,236.18,1.3395]
[1733478768216,1.3569,236.45,236.29,2.1139]
[1733478768417,1.3569,236.45,236.18,1.3395]
[1733478768714,2.1136,236.34,236.26,2.1142]
[1733478768914,1.3569,236.45,236.19,4.16080136]
[1733478769107,1.3569,236.45,236.18,1.3395]
[1733478769708,1.3569,236.45,236.19,4.13203324]
[1733478769908,2.1133,236.38,236.29,2.1139]
[1733478770107,1.3569,236.45,236.29,2.1139]
[1733478770517,1.3569,236.45,236.19,4.18068521]
[1733478770712,1.3569,236.45,236.18,1.3395]
[1733478771420,12.68,236.43,236.18,1.3395]
[1733478771617,1.2844,236.42,236.18,1.3395]
[1733478771815,15.2371,236.42,236.12,0.8443]
[1733478772015,15.2371,236.42,236.13,1.2766]
[1733478772916,15.2371,236.42,236.2,2.1148]
[1733478772917,2.1142,236.27,236.2,2.1148]
[1733478773518,2.1143,236.26,236.2,2.1148]
[1733478775221,15.2371,236.42,236.2,2.1148]
[1733478775423,2.1143,236.26,236.2,2.1148]
[1733478775927,12.68,236.4,236.13,1.2766]
[1733478776121,2.1144,236.25,236.19,2.1149]
[1733478776815,2.1144,236.25,236.2,2.1148]
[1733478777823,12.68,236.41,236.22,2.1146]
[1733478778018,2.5571,236.42,236.13,5.42217066]
[1733478778220,2.5571,236.42,236.27,2.1141]
[1733478778818,2.1137,236.33,236.27,2.1141]
[1733478779023,2.1137,236.33,236.19,4.29412557]
[1733478779220,2.5571,236.42,236.14,4.2305]
[1733478779526,2.5571,236.42,236.14,4.31698017]
[1733478779722,2.5571,236.42,236.15,0.8442]
[1733478780219,2.1137,236.33,236.28,2.114]
[1733478780521,2.5571,236.42,236.15,5.0747]
[1733478780717,2.1135,236.34,236.3,2.1138]
[1733478780918,2.5571,236.42,236.21,4.16192935]
[1733478781224,2.5571,236.42,236.15,5.0747]
[1733478781425,2.1135,236.34,236.29,2.1139]
[1733478782123,2.1133,236.38,236.17,5.80989385]
[1733478782321,2.5571,236.42,236.18,5.15414516]
[1733478782522,2.5571,236.42,236.17,5.80989385]
[1733478782723,2.1132,236.38,236.17,5.15850122]
[1733478782920,2.5571,236.42,236.16,5.80989385]
[1733478783117,2.5571,236.42,236.15,0.8442]
[1733478783322,2.1136,236.34,236.3,2.1139]
[1733478783920,2.5571,236.42,236.22,4.17546959]
[1733478784228,2.5571,236.42,236.23,1.284]
[1733478785121,2.5571,236.42,236.28,2.114]
[1733478785625,2.5571,236.42,236.23,1.284]
[1733478786726,2.1134,236.36,236.32,2.1137]
[1733478786925,2.1134,236.36,236.23,1.284]
[1733478786926,2.5571,236.42,236.23,1.284]
[1733478787127,2.5571,236.42,236.24,1.2588]
[1733478787324,2.1129,236.41,236.36,2.1133]
[1733478787524,2.5571,236.42,236.24,1.2588]
[1733478787920,2.1133,236.37,236.32,2.1136]
[1733478788128,2.5571,236.42,236.24,1.2588]
[1733478788327,1.2727,236.42,236.24,1.2588]
[1733478788629,2.5922,236.52,236.25,5.17613636]
[1733478788929,2.5922,236.52,236.38,2.1131]
[1733478788930,2.1128,236.43,236.38,2.1131]
[1733478789131,3.8882,236.52,236.3,4.18523028]
[1733478789428,2.1124,236.48,236.43,2.1127]
[1733478789623,3.8882,236.52,236.3,10.03319475]
[1733478789826,3.8882,236.52,236.29,23.23957541]
[1733478790026,3.8882,236.52,236.29,4.29859613]
[1733478790329,3.8882,236.52,236.28,28.31037541]
[1733478790330,2.5768,236.52,236.32,5.80989385]
[1733478790530,2.5768,236.52,236.33,6.49370532]
[1733478790728,2.5768,236.52,236.33,1.3176]
[1733478790931,44.02,236.59,236.33,1.3176]
[1733478791132,2.1119,236.53,236.34,49.11843091]
[1733478791431,2.5544,236.62,236.36,5.80989385]
[1733478791631,8.61438258,236.61,236.37,10.98566495]
[1733478791831,8.61438258,236.6,236.37,7.10739385]
[1733478792033,8.61438258,236.59,236.37,7.10739385]
[1733478792229,8.61855665,236.58,236.37,7.10739385]
[1733478792425,2.5544,236.62,236.37,1.2975]
[1733478792630,8.61853226,236.61,236.37,1.2975]
[1733478792833,8.61853226,236.6,236.37,1.2975]
[1733478793031,12.68,236.84,236.38,5.17113373]
[1733478793231,2.6265,236.71,236.44,17.42968156]
[1733478793431,2.6265,236.71,236.45,51.22880425]
[1733478793432,2.1107,236.66,236.45,51.22880425]
[1733478793631,2.1107,236.66,236.6,2.1112]
[1733478794029,2.6265,236.71,236.45,2.1347]
[1733478794337,9.91252368,236.7,236.45,2.1347]
[1733478794632,2.1111,236.62,236.57,2.1115]
[1733478794834,1.2836,236.7,236.52,4.13939418]
[1733478795135,1.2836,236.7,236.45,2.1347]
[1733478795136,8.62125127,236.69,236.45,2.1347]
[1733478795330,1.2836,236.7,236.45,2.1347]
[1733478795635,2.1107,236.67,236.45,2.1347]
[1733478796134,2.1107,236.66,236.59,2.1112]
[1733478796436,1.2836,236.7,236.45,2.1347]
[1733478796639,8.6111231,236.69,236.45,2.1347]
[1733478796931,8.6111231,236.69,236.45,1.2921]
[1733478797338,2.1117,236.55,236.49,2.1122]
[1733478798036,2.1117,236.55,236.5,2.1121]
[1733478798429,1.2836,236.7,236.39,44.0]
[1733478798729,27.16679072,236.69,236.48,2.1123]
[1733478798931,19.23687167,236.68,236.43,4.21959644]
[1733478799128,8.60183135,236.67,236.39,44.0]
[1733478799332,8.60183135,236.66,236.48,2.1122]
[1733478799538,2.1117,236.55,236.48,2.1122]
[1733478799935,1.2836,236.7,236.51,2.112]
[1733478800134,27.15605261,236.69,236.39,44.0]
[1733478800336,8.59846267,236.68,236.39,48.29422914]
[1733478800535,8.59846267,236.67,236.53,2.1118]
[1733478800735,8.59846267,236.66,236.39,48.29422914]
[1733478800934,8.59846267,236.65,236.39,48.29422914]
[1733478801129,1.2836,236.7,236.39,48.29422914]
[1733478801130,2.1116,236.56,236.5,2.1121]
[1733478801328,1.2836,236.7,236.5,2.1121]
[1733478801534,19.20612088,236.69,236.45,4.30986757]
[1733478801834,8.58809698,236.68,236.39,48.29422914]
[1733478802030,8.58809698,236.67,236.39,48.29422914]
[1733478802337,2.111,236.63,236.39,48.29422914]
[1733478802738,1.2836,236.7,236.39,48.29422914]
[1733478802934,8.58766589,236.69,236.39,48.29422914]
[1733478803136,8.58766589,236.68,236.39,48.29422914]
[1733478803439,2.1114,236.58,236.52,2.1119]
[1733478803837,2.1114,236.58,236.39,48.29422914]
[1733478803838,2.1114,236.58,236.45,4.18349213]
[1733478804032,1.2836,236.7,236.39,48.29422914]
[1733478804231,8.58277022,236.69,236.39,48.29422914]
[1733478804440,8.58277022,236.68,236.39,48.29422914]
[1733478804638,8.58277022,236.67,236.39,48.29422914]
[1733478804938,8.58277022,236.66,236.39,48.29422914]
[1733478805143,8.58291602,236.65,236.39,48.29422914]
[1733478805437,1.2836,236.7,236.54,2.1117]
[1733478805642,8.58104011,236.69,236.54,2.1117]
[1733478805844,8.58104011,236.68,236.39,48.29422914]
[1733478806042,1.2836,236.7,236.39,48.29422914]
[1733478806043,8.58104011,236.67,236.39,48.29422914]
[1733478806340,1.2836,236.7,236.39,48.29422914]
[1733478806541,2.1113,236.59,236.39,48.29422914]
[1733478806738,1.2836,236.7,236.39,48.29422914]
[1733478806940,2.1114,236.58,236.48,2.1123]
[1733478807136,2.1114,236.58,236.45,4.1499191]
[1733478807344,2.1114,236.58,236.39,48.29422914]
[1733478807535,1.2836,236.7,236.39,48.29422914]
[1733478807839,19.18290618,236.69,236.39,48.29422914]
[1733478808039,2.1117,236.55,236.5,2.112]
[1733478808441,2.1117,236.55,236.39,48.29422914]
[1733478809140,1.2836,236.7,236.39,48.29422914]
[1733478809444,8.57659856,236.69,236.39,48.29422914]
[1733478809744,8.57659856,236.68,236.39,48.29422914]
[1733478809940,8.57659856,236.67,236.39,48.29422914]
[1733478810146,1.2836,236.7,236.58,2.1113]
[1733478810440,1.2836,236.7,236.39,48.29422914]
[1733478810643,8.57891791,236.69,236.39,48.29422914]
[1733478810944,8.57891791,236.68,236.61,2.1111]
[1733478811146,8.57891791,236.67,236.54,4.29260495]
[1733478811343,2.6265,236.71,236.55,1.3483]
[1733478811544,0.61952,236.73,236.55,1.3483]
[1733478811545,2.72962,236.73,236.56,2.1338]
[1733478811842,3.9799,236.83,236.56,2.1338]
[1733478812044,8.58090498,236.82,236.56,2.1338]
[1733478812344,2.1097,236.77,236.7,2.1102]
[1733478812547,3.9799,236.83,236.56,2.1338]
[1733478812745,8.57553915,236.82,236.56,2.1338]
[1733478812941,2.1098,236.76,236.56,2.1338]
[1733478813241,3.9799,236.83,236.56,2.1338]
[1733478814449,6.0891,236.83,236.77,2.1097]
[1733478814647,3.9799,236.83,236.59,43.96]
[1733478814844,0.76139,236.82,236.59,43.96]
[1733478815149,2.87069,236.82,236.59,43.96]
[1733478815647,2.1096,236.78,236.59,43.96]
[1733478815847,0.76139,236.82,236.59,43.96]
[1733478816741,2.1098,236.77,236.71,2.1102]
[1733478816937,0.76139,236.82,236.63,4.29941612]
[1733478817245,2.1098,236.76,236.71,2.1102]
[1733478817849,2.1099,236.75,236.62,2.111]
[1733478818142,2.1099,236.75,236.56,2.1338]
[1733478818143,0.76139,236.82,236.56,2.1338]
[1733478818348,2.11,236.74,236.68,2.1105]
[1733478818749,0.76139,236.82,236.68,2.1105]
[1733478818949,2.1101,236.73,236.68,2.1105]
[1733478819151,2.1101,236.73,236.67,2.1106]
[1733478819951,0.76139,236.82,236.67,2.1106]
[1733478820153,0.76139,236.82,236.64,2.1108]
[1733478820351,0.76139,236.82,236.56,2.1338]
[1733478820656,0.76139,236.82,236.62,2.111]
[1733478820657,2.1105,236.68,236.62,2.111]
[1733478820852,0.76139,236.82,236.62,2.111]
[1733478821052,0.76139,236.82,236.55,1.3483]
[1733478821053,12.68,236.8,236.55,1.3483]
[1733478821247,21.22579318,236.79,236.59,2.1113]
[1733478821450,8.54579318,236.78,236.59,2.1113]
[1733478821644,21.22579318,236.78,236.5,4.15312985]
[1733478821849,8.54579318,236.77,236.57,2.1114]
[1733478822152,21.22579318,236.77,236.46,4.32168837]
[1733478822356,2.1115,236.57,236.52,2.1119]
[1733478822651,12.68,236.73,236.43,43.94]
[1733478822850,12.68,236.71,236.4,4.30225556]
[1733478823051,2.1118,236.54,236.48,2.1123]
[1733478823247,2.1118,236.54,236.4,4.30196826]
[1733478823454,2.6147,236.7,236.33,3.4965]
[1733478823660,2.1114,236.59,236.51,2.112]
[1733478823850,2.6147,236.7,236.51,2.112]
[1733478824156,8.55194851,236.69,236.51,2.112]
[1733478824349,8.55194851,236.68,236.44,4.18359649]
[1733478824551,8.55194851,236.67,236.45,1.3069]
[1733478825055,8.55194851,236.66,236.45,1.3069]
[1733478825254,8.55194851,236.65,236.45,1.3069]
[1733478825464,8.55194851,236.64,236.45,1.3069]
[1733478825644,2.111,236.63,236.51,2.112]
[1733478825845,1.2711,236.62,236.45,1.3069]
[1733478826255,2.1114,236.58,236.5,2.1121]
[1733478826555,1.2711,236.62,236.45,1.3069]
[1733478828150,2.1117,236.55,236.45,1.3069]
[1733478829059,2.1118,236.54,236.45,1.3069]
[1733478829451,1.2711,236.62,236.37,5.80882799]
[1733478829662,1.2711,236.62,236.33,71.89553591]
[1733478829663,2.1122,236.49,236.38,1.2567]
[1733478829857,1.2711,236.62,236.38,1.2567]
[1733478830060,8.58091602,236.61,236.38,1.2567]
[1733478830256,8.58091602,236.6,236.38,1.2567]
[1733478830453,8.58729984,236.59,236.38,1.2567]
[1733478830761,1.2711,236.62,236.39,4.2464075]
[1733478831056,2.1119,236.53,236.39,4.2464075]
[1733478831456,2.1119,236.53,236.47,2.1123]
[1733478831860,2.1119,236.52,236.47,2.1123]
[1733478834263,2.1119,236.52,236.39,4.2464075]
[1733478834264,2.1119,236.52,236.48,2.1123]
[1733478834654,2.1119,236.52,236.38,1.2567]
[1733478834655,2.1122,236.49,236.38,1.2567]
[1733478834862,1.2711,236.62,236.45,2.1125]
[1733478835263,2.1121,236.51,236.38,1.2567]
[1733478835467,1.2711,236.62,236.38,1.2567]
[1733478835660,2.1125,236.46,236.38,1.2567]
[1733478835866,1.2711,236.62,236.41,2.1129]
[1733478836165,2.1129,236.41,236.3,1.2499]
[1733478836361,2.1129,236.41,236.33,2.1136]
[1733478836661,2.1129,236.41,236.3,1.2499]
[1733478837362,2.1129,236.41,236.27,9.8982]
[1733478837363,20.4,236.53,236.23,5.80882799]
[1733478837558,15.3643,236.52,236.24,1.2499]
[1733478837766,2.1138,236.32,236.24,1.2499]
[1733478838062,12.68,236.5,236.27,2.1141]
[1733478838462,2.1137,236.33,236.27,2.1141]
[1733478838773,4.2242,236.51,236.24,1.2499]
[1733478839071,8.59151592,236.5,236.24,1.2499]
[1733478839260,8.59151592,236.49,236.27,2.1142]
[1733478839465,8.59151592,236.48,236.24,1.2499]
[1733478839763,12.68,236.5,236.24,1.2499]
[1733478839964,12.68,236.48,236.24,1.2499]
[1733478840165,12.68,236.48,236.27,2.1141]
[1733478840764,12.68,236.48,236.28,2.1141]
[1733478840965,12.68,236.5,236.28,2.1141]
[1733478841165,8.58174028,236.49,236.24,1.2499]
[1733478841361,2.1131,236.39,236.32,2.1137]
[1733478841765,4.2242,236.51,236.32,2.1137]
[1733478841959,3.99,236.52,236.27,4.28354411]
[1733478842159,3.99,236.52,236.24,1.2499]
[1733478842970,2.1126,236.45,236.39,2.1131]
[1733478843672,3.99,236.52,236.24,1.2499]
[1733478845768,3.99,236.52,236.32,2.1137]
[1733478846168,2.1134,236.36,236.24,1.2499]
[1733478846377,12.68,236.51,236.24,1.2499]
[1733478846970,2.1133,236.37,236.3,2.1138]
[1733478847173,2.1133,236.37,236.24,1.2499]
[1733478847476,2.1133,236.37,236.3,2.1139]
[1733478848173,2.1134,236.36,236.3,2.1139]
[1733478849274,3.99,236.52,236.24,1.2499]
[1733478849466,2.1132,236.39,236.33,2.1136]
[1733478849870,3.99,236.52,236.33,2.1136]
[1733478850070,2.1132,236.38,236.33,2.1136]
[1733478850279,3.99,236.52,236.33,2.1136]
[1733478850474,2.1128,236.43,236.27,4.20515795]
[1733478850673,2.1128,236.43,236.24,1.2499]
[1733478851374,3.99,236.52,236.24,1.2499]
[1733478852173,2.1126,236.45,236.39,2.113]
[1733478852372,3.99,236.52,236.39,2.113]
[1733478852568,3.99,236.52,236.24,1.2499]
[1733478853175,2.1131,236.39,236.24,1.2499]
[1733478854279,2.1127,236.44,236.24,1.2499]
[1733478854474,3.99,236.52,236.32,2.1137]
[1733478854678,3.99,236.52,236.31,4.2781714]
[1733478854881,3.99,236.52,236.24,1.2499]
[1733478855179,3.99,236.52,236.25,4.2287]
[1733478855771,2.1126,236.44,236.4,2.113]
[1733478856276,3.99,236.52,236.27,4.16083723]
[1733478856470,3.99,236.52,236.25,4.2287]
[1733478858675,2.1128,236.43,236.38,2.1131]
[1733478861275,2.1129,236.42,236.38,2.1132]
[1733478861477,16.67,236.52,236.25,4.2287]
[1733478862082,2.1128,236.43,236.25,4.2287]
[1733478862284,16.67,236.52,236.24,7.9499]
[1733478862586,12.68,236.5,236.3,2.1139]
[1733478862788,12.68,236.47,236.3,2.1139]
[1733478863189,12.68,236.47,236.28,2.114]
[1733478863387,12.68,236.47,236.24,1.2499]
[1733478863587,2.1136,236.33,236.24,1.2499]
[1733478863881,2.1136,236.33,236.29,2.1139]
[1733478864082,2.1136,236.33,236.24,1.2499]
[1733478864883,12.68,236.45,236.24,1.2499]
[1733478865092,21.28854644,236.44,236.24,1.2499]
[1733478865292,8.60854644,236.43,236.27,2.1141]
[1733478865790,1.2587,236.42,236.27,2.1141]
[1733478865990,8.60854644,236.41,236.27,2.1141]
[1733478866491,2.5803,236.4,236.27,2.1141]
[1733478866787,8.60854644,236.39,236.27,2.1141]
[1733478866992,8.60854644,236.39,236.24,1.2499]
[1733478867689,2.1136,236.34,236.3,2.1139]
[1733478868387,2.1136,236.33,236.29,2.114]
[1733478868587,2.5803,236.4,236.19,12.22882799]
[1733478868891,8.63216379,236.39,236.19,5.80882799]
[1733478869188,2.1139,236.3,236.26,2.1143]
[1733478869392,2.5803,236.4,236.18,8.42652799]
[1733478869687,2.1142,236.28,236.23,2.1145]
[1733478870187,2.5803,236.4,236.18,2.6177]
[1733478870390,2.1137,236.32,236.2,23.23531196]
[1733478870591,2.1137,236.32,236.21,5.19237146]
[1733478870791,2.5803,236.4,236.21,5.80882799]
[1733478871287,2.5803,236.4,236.22,11.00345361]
[1733478871492,2.5803,236.4,236.3,2.1139]
[1733478872286,2.5803,236.4,236.23,4.33540276]
[1733478872588,2.5803,236.4,236.19,5.80882799]
[1733478872895,2.1133,236.37,236.3,2.1138]
[1733478873388,2.1132,236.38,236.32,2.1137]
[1733478873590,2.5803,236.4,236.23,4.15625261]
[1733478873785,2.5803,236.4,236.2,23.23531196]
[1733478873982,2.1136,236.33,236.27,2.1141]
[1733478874189,1.2973,236.4,236.18,25.85301196]
[1733478874389,1.2587,236.42,236.19,5.19567117]
[1733478874593,2.1138,236.32,236.24,2.1144]
[1733478874788,2.1138,236.32,236.18,25.85301196]
[1733478874989,2.1138,236.32,236.19,11.00449214]
[1733478875194,2.1138,236.32,236.25,2.1143]
[1733478875491,2.6795,236.46,236.24,4.16337507]
[1733478875696,17.00469978,236.45,236.19,5.80882799]
[1733478875993,2.1138,236.31,236.18,8.42652799]
[1733478876384,2.1138,236.31,236.26,2.1142]
[1733478877486,12.68,236.45,236.18,2.6177]
[1733478877685,2.114,236.3,236.25,2.1143]
[1733478878087,16.9054,236.44,236.25,2.1143]
[1733478878287,27.73656839,236.43,236.25,2.1143]
[1733478878493,27.73656839,236.42,236.25,2.1143]
[1733478878696,27.73656839,236.41,236.25,2.1143]
[1733478878896,17.02444795,236.4,236.25,2.1143]
[1733478879092,17.02444795,236.39,236.25,2.1143]
[1733478879297,8.66386389,236.38,236.25,2.1143]
[1733478879499,8.66386389,236.37,236.22,2.1146]
[1733478879703,17.02838804,236.36,236.22,2.1146]
[1733478879902,8.66386389,236.35,236.22,2.1146]
[1733478880103,2.1143,236.26,236.22,2.1146]
[1733478880704,2.1143,236.26,236.23,2.1145]
[1733478881107,2.1143,236.26,236.17,4.26493113]
[1733478881305,2.1143,236.26,236.22,2.1146]
[1733478882213,2.1142,236.27,236.17,4.26493113]
[1733478882412,5.92,236.39,236.16,1.3203]
[1733478882612,28.14122894,236.38,236.16,1.3203]
[1733478882910,2.114,236.29,236.16,1.3203]
[1733478883210,5.92,236.39,236.16,1.3203]
[1733478883405,13.9335,236.49,236.18,27.46511196]
[1733478883705,17.41887968,236.45,236.2,23.23531196]
[1733478883903,17.41887968,236.44,236.21,11.0010659]
[1733478884104,17.41887968,236.43,236.2,44.0010084]
[1733478884307,8.67527852,236.42,236.21,11.00024879]
[1733478884607,7.1735,236.49,236.2,44.00008734]
[1733478884608,9.97907852,236.41,236.2,44.00008734]
[1733478884813,2.6716,236.41,236.21,5.19119395]
[1733478885007,2.6716,236.41,236.2,5.80882799]